Cogmind - Beta 13 @@@ ROGUE MODE // 2024.04.08 @ 22:29:36 Player: GregoriusTechneticies Result: Destroyed by S-10 Pest with Light Assault Rifle Performance ------------- Evolutions (0) 0 Regions Visited (1) 200 Robots Destroyed (33) 165 Value Destroyed (393) 393 Prototype IDs (0) 0 Alien Tech Used (0) 0 Bonus (0) 0 TOTAL SCORE: 758 Bonus ------- None Cogmind --------- Core Integrity 0/250 Matter 252/300 Energy 125/125 System Corruption 0% Temperature Cool (32) Movement Flying (37) Location -10/Materials Parts ------- > --- POWER (1) -------- Light Ion Engine > --- PROPULSION (2) --- Flight Unit Flight Unit > --- UTILITY (2) ------ Improved Terrain Scanner Terrain Scan Processor > --- WEAPON (2) ------- Light Assault Rifle Mining Laser > --- INVENTORY (5) ---- Flight Unit Visual Processing Unit Terrain Scan Processor Seismic Detector ECM Suite Peak State ------------ > --- POWER ------------ Light Ion Engine > --- PROPULSION ------- Flight Unit Flight Unit > --- UTILITY ---------- Improved Terrain Scanner Terrain Scan Processor > --- WEAPON ----------- Particle Gun Mining Laser > --- INVENTORY -------- Visual Processing Unit Terrain Scan Processor Seismic Detector ECM Suite [Rating: 11] Favorites ----------- Power Light Ion Engine Engine Light Ion Engine Propulsion Wheel Wheel Wheel Flight Unit Flight Unit Utility Improved Terrain Scanner Device Improved Terrain Scanner Storage Small Storage Unit Processor Terrain Scan Processor Weapon Small Laser Energy Gun Small Laser Ballistic Gun Light Assault Rifle Special Weapon Mining Laser Build | -11 -10 ------- Run | Yrd Mat Slots Evolved . | . . Power . | . . Propulsion . | . . Utility . | . . Weapon . | . . Parts Attached 35 | 13 22 Power 4 | 1 3 Engine 4 | 1 3 Core . | . . Reactor . | . . Propulsion 16 | 7 9 Treads . | . . Leg . | . . Wheel 13 | 7 6 Hover . | . . Flight 3 | . 3 Utility 6 | 3 3 Device 4 | 2 2 Storage 1 | 1 . Processor 1 | . 1 Hackware . | . . Protection . | . . Artifact . | . . Weapon 9 | 2 7 Energy Gun 5 | 2 3 Energy Cannon . | . . Ballistic Gun 1 | . 1 Ballistic Cannon . | . . Launcher . | . . Special Weapon 3 | . 3 Impact Weapon . | . . Slashing Weapon . | . . Piercing Weapon . | . . Special Melee Weapon . | . . Unidentified Prototypes . | . . Parts Lost 6 | . 6 Power 1 | . 1 Propulsion 3 | . 3 Utility . | . . Weapon 2 | . 2 Highest Loss Streak 4 | . 4 To Critical Strikes . | . . Average Slot Usage (%) 97 | . 97 Engine 13 | . 13 Wheel 26 | . 26 Device 14 | . 14 Storage 1 | . 1 Processor 12 | . 12 Energy Gun 25 | . 25 Naked Turns . | . . Heaviest Build 11 | 11 11 Greatest Support 32 | 32 20 Greatest Overweight (x) 1 | . 1 Average Overweight (x) . | . . Largest Inventory Capacity 8 | 8 8 Average Capacity 5 | 7 5 Most Carried 8 | 8 8 Average Carried 5 | 4 5 Final Capacity 8 | 8 5 Final Carried 8 | 8 5 Class Distribution -------------------- 69% | Scavenger-Mutant 30% | Mutant Dominant Class ---------------- Scavenger-Mutant | -10/Materials Resources | -11 -10 ----------- Run | Yrd Mat Matter Collected 535 | 310 225 Remotely . | . . Salvage Created 916 | 343 573 Parts 68 | 31 37 Haulers Intercepted 1 | . 1 Recyclers Shooed 1 | . 1 Parts Field Recycled . | . . Retrieved Matter . | . . Parts Self-Destructed . | . . Prevented . | . . Kills | -11 -10 ------- Run | Yrd Mat Combat Hostiles Destroyed 9 | . 9 Guns 8 | . 8 Cannons 1 | . 1 Classes Destroyed 8 | 3 5 Worker 4 | 4 . Builder 2 | . 2 Tunneler 12 | 9 3 Hauler 1 | . 1 Recycler 3 | 1 2 Watcher 2 | . 2 Swarmer 4 | . 4 Grunt 5 | . 5 Best Kill Streak 5 | 4 5 Combat Bots Only 3 | . 3 Max Kills in Single Turn 1 | 1 1 Gunslinging . | . . Exploded . | . . Melee . | . . Uniques/NPCs Destroyed . | . . Combat | -11 -10 -------- Run | Yrd Mat Hostile Shots Fired 97 | . 97 Missed 24 | . 24 Damage Taken 758 | . 758 Core 250 | . 250 Absorbed by Shields . | . . Core Remaining (%) 100 | 100 . Volleys Fired 115 | 33 82 Largest 2 | 2 2 Hottest 140 | 80 140 Shots Fired 185 | 66 119 Gun 179 | 66 113 Cannon . | . . Launcher . | . . Special 6 | . 6 Kinetic 11 | . 11 Thermal 174 | 66 108 Explosive . | . . Electromagnetic . | . . Robot Hit Streak 12 | 11 12 Robot Miss Streak 4 | 3 4 Penetration Max . | . . Secondary Targets . | . . Shots Hit Robots 106 | 40 66 Core Hits 41 | 15 26 Critical Kills . | . . Critical Parts Destroyed . | . . Critical Strikes 1 | . 1 Burn 1 | . 1 Melee Attacks . | . . Impact . | . . Slashing . | . . Piercing . | . . Sneak Attacks . | . . Combat Hostiles . | . . Follow-up Attacks . | . . Damage Inflicted 1354 | 450 904 Guns 1306 | 450 856 Cannons . | . . Explosions . | . . Melee . | . . Ramming . | . . Kinetic 43 | . 43 Thermal 1311 | 450 861 Explosive . | . . Electromagnetic . | . . Impact . | . . Slashing . | . . Piercing . | . . Highest Corruption . | . . Average Corruption . | . . Corruption Purged . | . . Corruption Blocked . | . . Overload Shots . | . . Overflow Damage . | . . Projectiles . | . . Explosions . | . . Melee . | . . Knockbacks . | . . Impact . | . . Kinetic . | . . Secondary . | . . Self-Inflicted Damage . | . . Shots . | . . Rammed . | . . Targets Rammed . | . . Kicked . | . . Crushed . | . . Highest Temperature 519 | 198 519 Average Temperature 117 | 78 134 Received Heat Transfer 306 | . 306 Effects 8 | . 8 Energy Bleed 3 | . 3 Interference 1 | . 1 Matter Decay 1 | . 1 Damage (minor) 3 | . 3 Siege Activations . | . . Robots Corrupted . | . . Combat Hostiles . | . . Parts Fried . | . . Impact Corruptions . | . . Robots Melted . | . . Combat Hostiles . | . . Parts Melted 8 | 4 4 Heat Transferred 3119 | 1025 2094 Parts Sabotaged . | . . Parts Stolen . | . . Parts Stripped . | . . Power Chain Reactions . | . . Alert | -11 -10 ------- Run | Yrd Mat Peak Influence 174 | 70 174 Initial 45 | . 45 Average 33 | 36 32 Maximum Alert Level . | . . Low Security (%) 100 | 100 100 Level 1 . | . . Level 2 . | . . Level 3 . | . . Level 4 . | . . Level 5 . | . . High Security . | . . Max Security . | . . Squads Dispatched 2 | . 2 Investigation 2 | . 2 Extermination . | . . Reinforcement . | . . Assault . | . . Garrison . | . . Intercept . | . . Searches Triggered . | . . Construction Impeded . | . . Haulers Reinforced . | . . Active Scanning Responses . | . . Cargo Convoy Interrupts . | . . Stealth | -11 -10 --------- Run | Yrd Mat Distress Signals 3 | . 3 Communications Jammed . | . . Distress Signals . | . . Times Spotted 26 | . 26 Peak Tracking Total 4 | . 4 Tactical Retreats 5 | . 5 Traps | -11 -10 ------- Run | Yrd Mat Traps Triggered . | . . Indirectly . | . . Trap Hack Attempts . | . . Triggered . | . . Disarmed . | . . Reprogrammed . | . . Reused . | . . Traps Extracted . | . . Installed . | . . Triggered . | . . Machines | -11 -10 ---------- Run | Yrd Mat Machines Disabled 2 | . 2 Max in Single Turn 1 | . 1 Machines Repaired . | . . Machines Dismantled . | . . Machines Sabotaged . | . . Overloaded Fab Kills . | . . Hacking | -11 -10 --------- Run | Yrd Mat Machines Accessed 8 | . 8 Terminals 6 | . 6 Fabricators . | . . Repair Stations 1 | . 1 Recycling Units 1 | . 1 Scanalyzers . | . . Garrison Access . | . . Total Hacks 27 | . 27 Successful 13 | . 13 Failed 14 | . 14 Catastrophic 3 | . 3 Database Lockouts . | . . Manual 26 | . 26 Terminals 21 | . 21 Fabricators . | . . Repair Stations 1 | . 1 Recycling Units 5 | . 5 Scanalyzers . | . . Garrison Access . | . . Terminal Hacks 5 | . 5 Level Access Points 1 | . 1 Branch Access Points 1 | . 1 Emergency Access Points 1 | . 1 Terminal Index 1 | . 1 Unreport Threat 1 | . 1 Fabricator Hacks . | . . Repair Station Hacks . | . . Recycling Unit Hacks . | . . Scanalyzer . | . . Garrison Access Hacks . | . . Unauthorized Hacks 8 | . 8 Terminals 4 | . 4 Botnet 3 | . 3 Operators 1 | . 1 Fabricators . | . . Repair Stations 1 | . 1 Mechanics 1 | . 1 Recycling Units 3 | . 3 Monitor 1 | . 1 Reject 1 | . 1 Recyclers 1 | . 1 Scanalyzers . | . . Garrison Access . | . . Data Cores Recovered . | . . Used . | . . Hacking Detections 8 | . 8 Full Trace Events 2 | . 2 Feedback Events . | . . Feedback Blocked . | . . Robot Schematics Acquired . | . . Robots Built . | . . Authchips . | . . Time . | . . Total Robot Build Rating . | . . Part Schematics Acquired . | . . Parts Built . | . . Authchips . | . . Time . | . . Total Part Build Rating . | . . Parts Repaired . | . . Time . | . . Parts Recycled . | . . Recycled Matter . | . . Retrieved Matter . | . . Retrieved Components . | . . Parts Scanalyzed . | . . Part Schematics Acquired . | . . Parts Damaged . | . . Bothacking | -11 -10 ------------ Run | Yrd Mat Used RIF Installer . | . . Robots Hacked . | . . Non-combat . | . . Combat . | . . Robot Hacks Applied . | . . Relay Couplers Released . | . . Fabnet Peak Effective % . | . . Robots Rewired . | . . Allies Hacked . | . . Hacks Repelled . | . . Allies | -11 -10 -------- Run | Yrd Mat Total Allies . | . . Largest Group . | . . Highest-Rated Group . | . . Highest-Rated Ally . | . . Total Orders . | . . Ally Attacks . | . . Total Damage . | . . Kills . | . . Allies Corrupted . | . . Allies Melted . | . . Intel | -11 -10 ------- Run | Yrd Mat Robot Analysis Total . | . . Derelict Logs Recovered . | . . Drone Launches . | . . Drone Recoveries . | . . Exploration | -11 -10 ------------- Run | Yrd Mat Turns Passed 2031 | 314 1717 Spaces Moved 649 | 119 530 Core 5 | 3 2 Treads . | . . Legs . | . . Wheels 607 | 116 491 Hover . | . . Flight 37 | . 37 Fastest Speed 37 | 50 37 Average Speed 78 | 85 77 Slowest Speed 125 | 100 125 Overloaded Moves . | . . Propulsion Burnouts . | . . Robots Hopped . | . . Cave-ins Triggered . | . . Exploration Rate (%) 43 | 4 82 Regions Visited 1 Branch Regions . Pre-discovered Areas . | . . Known Exits Taken . | . . Unknown Exits Taken 1 | 1 . Scrap Searched . | . . Spaces Dug 3 | . 3 Terrain Destroyed 4 | . 4 Melee . | . . Projectile 4 | . 4 AOE . | . . Terrain Rammed . | . . Walls Destroyed . | . . Machines Disabled . | . . Actions | -11 -10 --------- Run | Yrd Mat Total 1975 | 265 1710 Wait 1122 | 75 1047 Move 648 | 118 530 Hop . | . . Pick Up 28 | 17 11 Fast Attach 11 | 5 6 Attach 5 | 2 3 Detach . | . . Swap 19 | 6 13 Drop 27 | 9 18 Fire 115 | 33 82 Melee . | . . Ram . | . . Kick . | . . Crush . | . . Escape Stasis . | . . Rewire . | . . Trap . | . . Miscellaneous . | . . Route ------- -11/Scrapyard -10/Materials (discovered 5 exits: *Mat x3 / *Min x2) History --------- Turn | Location | Event 14 | -11/Scrapyard | Discovered new exit (range 15) 315 | -11/Scrapyard | Entered Materials 344 | -10/Materials | Build established: Mutant 808 | -10/Materials | Build established: Scavenger-Mutant 950 | -10/Materials | Discovered new exit (range 13) 1369 | -10/Materials | Discovered new exit (range 14) 1793 | -10/Materials | Discovered new exit (range 8) 1859 | -10/Materials | Core integrity fell below 50% 1909 | -10/Materials | Lost 4 parts (1p2n1w) 1920 | -10/Materials | Identified exit to Mines 1960 | -10/Materials | Core integrity fell below 20% 2010 | -10/Materials | Identified exit to Materials 2032 | -10/Materials | Destroyed by S-10 Pest with Light Assault Rifle Last Messages --------------- 01984_ Acquired Flight Unit. 01988_ Dropped Flight Unit. 01991_ Acquired Flight Unit. 01992_ Acquired 13 matter. 01993_ Dropped Particle Gun. 01993_ Acquired Lgt. Assault Rifle. 01998_ K-01 Serf collects debris. 02001_ K-01 Serf cleans the Processing Tank. 02010_ Connecting with Terminal... >>Access(Main) Found 3 level access points to Materials: (10,63) (63,20) (16,7) Map updated. 02015_ W-16 Scout sends out distress signal. 02017_ W-16 Scout destroyed. 02022_ S-10 Pest destroyed. 02022_ U-05 Engineer destroyed. 02025_ S-10 Pest destroyed. Map ----- +----------------------------------------------------+ | ????????????????????+?############+#### | | ???????????????????????? ??# | | ?????????????????"?????"? + "" """ | | ????????????????????????"??# "T """ | | ???????????????????????"???# "" """ | | ???????????????? ??????????# % != | | ?????????????????????#??##############+ | | ????????????????"??????? ] = ####= | | ???????????????? ??#?#? ? #?##% | | ????????????????? ??##?? """ """ #?##= | | ?????????????"?"?" ?#?# ??""" """ #?##= | | ????????????????"? #??? ? """ """ #?##= | | ?????#????? ? ???????## ? ?? #?##! | | ??? ??????? ??????????? ?? ? #??# | | ??? ?? ?#+#?#+##############+####+#### | | ?????? ?# ^ = = % | | ?????? ?# [ r %^ * | | ???????## ^ """"" """"" "" " ^ """"" | | ????????# """"" """"" """"" """"" | | ?#??????# """"" """"" """"" """"" | | ?????#+## | | ??#??# | | ?#???# ##T#### | | ?#???# ####??###### | | ?????# ####/######### ####????#### | | ???????? ?# !@! ##??# ##??????#" | | ??#???? ??# !%= #??## #???????#"" | | ?#????????# |* #?#?# #?###???#!! | | ???#??? ??# s ##??# #?###?#?#"" > | | #??????? ?# ##??# #?????#?#!! | | #?????????+ #???# #???##?##"" | | ??#???? ? # #???# ##??##?##" | | ?#?????? # #?### #####???#### | | ????#??? ?# ### ########## | | ???#??? ?##########?# *|%! | | ?????# ????????????# = | | ?????? ??????????#??## | | ?????#????????##?#?#?# #######+## | | ???????????????######## ### # | | ???????????????# # #?# # | | ???????????????# + ### # | | ???????????????# # #?# " " # | | ???????????????# # #?# "R" ### | | ???????????????# # #?# """ ##? | | ???????????????# # #?# #?# | | ???????????????######## ############? | | ???????????????# [ ?# ## ##? | | ???????????????# ## ## #?? | | ???????????????# ! # # #?# | | ???????????????# # T =#! #?# | +----------------------------------------------------+ Best States ------------- Heat Dissipation 25 Energy Generation 10 Energy Capacity 125 Matter Stores 300 Matter Capacity 300 Sight Range 16 Terrain Scan Range 16 Terrain Scan Density 85 ECM Strength 1 Evasion (%) 62 Item Schematics ----------------- None Robot Schematics ------------------ None Fabricated ------------ Nothing Alien Tech Used ----------------- None Achievements -------------- None Challenges ------------ None Game ------ Seed MetafieldChargeCleaver Manual? 0 Play Time 00:28:27 Cumulative 16.6 hours Start 2024.04.08 @ 03:23:07 End 2024.04.08 @ 22:29:36 Sessions 3 Manual Loads 0 Difficulty Rogue Special Mode None Game No. 16 Rogue 1 Adventurer 0 Explorer 15 Win Type - Total 0 Types 0/0/0/0/0/0/0/0/0 Lore% 4 Gallery% 23 Achievement% 17 Wizard Run 0 Options --------- Layout 1 ASCII 0 Keyboard 0 Movement Mouse Keybinds 0 Fullscreen 1 Font 24/Smallcaps Map View 50x35 Zoom Use 0% Tactical HUD 1 Map Filters NONE Filters NONE Steam 1 RUN: 74dd799f-0ba6-413c-a26f-9fb4b6d0355a